bitfinex/quotes_BTCUSD_20230905
["timestamp","ask_amount","ask_price","bid_price","bid_amount"]
[1693921170251,0.26132518,25763.0,25762.0,2.329011]
[1693921170786,0.26132518,25763.0,25762.0,2.333011]
[1693921170992,0.26332518,25763.0,25762.0,2.338011]
[1693921171176,0.26332518,25763.0,25762.0,1.561674]
[1693921174397,0.004,25763.0,25762.0,1.561674]
[1693921175040,0.004,25763.0,25762.0,2.338011]
[1693921175240,0.004,25763.0,25762.0,2.439911]
[1693921177347,0.004,25763.0,25762.0,2.46424816]
[1693921178592,0.004,25763.0,25762.0,2.45924816]
[1693921179615,0.24296942,25763.0,25762.0,1.68291116]
[1693921180192,0.24296942,25763.0,25762.0,1.58101116]
[1693921180546,0.24296942,25763.0,25762.0,0.03333716]
[1693921181214,1.01927642,25763.0,25762.0,0.03333716]
[1693921185581,1.30124951,25763.0,25762.0,0.03333716]
[1693921186109,1.01927642,25763.0,25762.0,0.03333716]
[1693921188989,1.79558342,25763.0,25762.0,0.03333716]
[1693921189963,1.01927642,25763.0,25762.0,0.03333716]
[1693921190730,0.004,25763.0,25762.0,1.58601116]
[1693921190973,0.004,25763.0,25762.0,2.36234816]
[1693921192026,0.004,25763.0,25762.0,1.58601116]
[1693921192437,0.004,25763.0,25762.0,0.80967416]
[1693921192547,0.29057347,25763.0,25762.0,0.03333716]
[1693921193988,1.06688047,25763.0,25762.0,0.03333716]
[1693921194193,0.29057347,25763.0,25762.0,0.03333716]
[1693921194624,0.29057347,25763.0,25762.0,0.80967416]
[1693921195033,0.29057347,25763.0,25762.0,1.58601116]
[1693921195454,0.004,25763.0,25762.0,2.46424816]
[1693921198391,0.24534139,25763.0,25762.0,0.80967416]
[1693921198608,0.24534139,25763.0,25762.0,0.03333716]
[1693921199453,0.24534139,25763.0,25762.0,0.80967416]
[1693921199794,0.24534139,25763.0,25762.0,1.58601116]
[1693921200381,0.004,25763.0,25762.0,1.58601116]
[1693921200793,0.29060084,25763.0,25762.0,1.58601116]
[1693921203742,0.38314665,25763.0,25762.0,1.58601116]
[1693921204421,0.09654581,25763.0,25762.0,1.58601116]
[1693921204889,0.09654581,25763.0,25762.0,2.46424816]
[1693921205515,0.004,25763.0,25762.0,2.46424816]
[1693921205735,0.09654581,25763.0,25762.0,2.46424816]
[1693921207228,0.09654581,25763.0,25762.0,2.36234816]
[1693921210140,0.09654581,25763.0,25762.0,2.46424816]
[1693921211711,0.004,25763.0,25762.0,2.46424816]
[1693921211916,0.004,25763.0,25762.0,2.91899343]
[1693921212132,0.004,25763.0,25762.0,5.1198557]
[1693921212338,0.13882062,25767.0,25764.0,0.4078]
[1693921212339,0.09254581,25767.0,25764.0,0.4078]
[1693921212567,0.13882062,25768.0,25764.0,0.4078]
[1693921212568,0.09254581,25768.0,25766.0,0.1019]
[1693921212797,0.13882062,25769.0,25767.0,2.430458]
[1693921212798,0.23136643,25769.0,25767.0,2.430458]
[1693921213005,0.23136643,25769.0,25768.0,0.38361033]
[1693921213213,0.50663915,25769.0,25768.0,1.93592233]
[1693921213430,0.50663915,25769.0,25768.0,2.71207833]
[1693921213631,0.32391225,25769.0,25768.0,0.776156]
[1693921214050,0.18509163,25769.0,25768.0,0.776156]
[1693921214251,0.46288737,25769.0,25768.0,0.784156]
[1693921214651,0.46288737,25769.0,25768.0,0.008]
[1693921214652,0.6017318,25769.0,25768.0,0.008]
[1693921215054,0.6027318,25769.0,25768.0,0.018]
[1693921215258,2.01613937,25769.0,25766.0,1.47353717]
[1693921215670,0.09256349,25767.0,25766.0,0.69733117]
[1693921215872,0.09256349,25767.0,25765.0,0.90132236]
[1693921215873,0.09256349,25767.0,25765.0,0.79942236]
[1693921216073,0.86874949,25767.0,25765.0,0.79942236]
[1693921216496,0.24622553,25766.0,25765.0,0.79942236]
[1693921217423,0.24622553,25766.0,25765.0,0.81742236]
[1693921217623,0.24622553,25766.0,25765.0,0.79942236]
[1693921218037,0.24822553,25766.0,25765.0,0.81742236]
[1693921218484,0.25022553,25766.0,25765.0,0.83542236]
[1693921218897,0.25022553,25766.0,25765.0,0.76167348]
[1693921219984,0.25022553,25766.0,25765.0,1.53791948]
[1693921220178,0.25022553,25766.0,25765.0,0.76167348]
[1693921220554,0.25022553,25766.0,25765.0,0.05913723]
[1693921220555,1.02644153,25766.0,25765.0,0.05913723]
[1693921221531,1.02444153,25766.0,25765.0,0.04113723]
[1693921221966,1.02644153,25766.0,25765.0,0.05713723]
[1693921222380,1.02444153,25766.0,25765.0,0.03913723]
[1693921222613,0.24622553,25766.0,25765.0,0.03913723]
[1693921222814,0.25022553,25766.0,25765.0,0.05513723]
[1693921223530,0.004,25766.0,25765.0,2.62827085]
[1693921223737,0.004,25766.0,25765.0,2.73017085]
[1693921225126,0.004,25766.0,25765.0,2.62827085]
[1693921225280,0.004,25766.0,25765.0,2.38387523]
[1693921225687,0.29307653,25766.0,25765.0,1.60762923]
[1693921226714,0.29307653,25766.0,25765.0,0.83138323]
[1693921231573,0.004,25766.0,25765.0,1.60762923]
[1693921231726,0.004,25766.0,25765.0,2.38387523]
[1693921231938,0.004,25766.0,25765.0,2.48577523]
[1693921232545,0.004,25766.0,25765.0,2.38387523]
[1693921232924,0.004,25766.0,25765.0,1.60762923]
[1693921233130,0.22602975,25766.0,25765.0,1.60762923]
[1693921234707,0.22602975,25766.0,25765.0,2.38387523]
[1693921234958,0.004,25766.0,25765.0,2.38387523]
[1693921236310,0.004,25766.0,25765.0,2.48577523]
[1693921238997,0.004,25766.0,25765.0,3.2802205]
[1693921239200,0.004,25766.0,25765.0,3.4091405]
[1693921239498,0.004,25766.0,25765.0,3.6985205]
[1693921239700,0.004,25766.0,25765.0,3.6973205]
[1693921239925,0.004,25766.0,25765.0,2.90155523]
[1693921240132,0.004,25766.0,25765.0,2.82577523]
[1693921240336,0.004,25766.0,25765.0,3.2124205]
[1693921240540,0.004,25766.0,25765.0,2.82577523]
[1693921241578,0.004,25766.0,25765.0,2.89471523]
[1693921241800,0.004,25766.0,25765.0,2.89579523]
[1693921242007,0.004,25766.0,25765.0,2.89513523]
[1693921242215,0.004,25766.0,25765.0,2.89477523]
[1693921242419,0.004,25766.0,25765.0,3.76181259]
[1693921242699,0.004,25766.0,25765.0,3.78863259]
[1693921242902,0.004,25766.0,25765.0,3.78731259]
[1693921243099,0.004,25766.0,25765.0,3.78539259]
[1693921243334,0.004,25766.0,25765.0,3.78557259]
[1693921243513,0.004,25766.0,25765.0,3.78059259]
[1693921243670,0.004,25766.0,25765.0,3.78125259]
[1693921243888,0.004,25766.0,25765.0,3.78143259]
[1693921244091,0.004,25766.0,25765.0,3.78179259]
[1693921244293,0.004,25766.0,25765.0,3.78131259]
[1693921244492,0.004,25766.0,25765.0,3.78239259]
[1693921244706,0.004,25766.0,25765.0,3.78149259]
[1693921244916,0.004,25766.0,25765.0,3.79673259]
[1693921245130,0.004,25766.0,25765.0,4.09681259]
[1693921245488,0.004,25766.0,25765.0,3.94531259]
[1693921245715,0.004,25766.0,25765.0,3.94459259]
[1693921245942,0.23131076,25776.0,25774.0,0.06]
[1693921246150,0.21856269,25777.0,25775.0,1.80844811]
[1693921246371,0.21856269,25777.0,25776.0,0.1019]
[1693921246585,0.21856269,25777.0,25776.0,1.41316045]
[1693921246586,0.138786,25777.0,25776.0,1.41316045]
[1693921246789,0.54373507,25779.0,25776.0,1.67610324]
[1693921246790,0.3124243,25779.0,25776.0,1.67610324]
[1693921246999,0.2919274,25777.0,25776.0,3.28069135]
[1693921247219,0.2919274,25777.0,25776.0,3.22793324]
[1693921248221,0.157249,25777.0,25776.0,3.22793324]
[1693921248430,0.158249,25777.0,25776.0,3.24293324]
[1693921248638,0.156249,25777.0,25776.0,3.24343324]
[1693921248835,0.156249,25777.0,25776.0,3.57582656]
[1693921249467,0.156249,25777.0,25776.0,3.58882656]
[1693921249468,0.157249,25777.0,25776.0,3.58882656]
[1693921249654,0.157249,25777.0,25776.0,2.81291156]
[1693921249849,0.157249,25777.0,25776.0,3.58882656]
[1693921250052,0.002,25777.0,25776.0,3.58882656]
[1693921250634,0.002,25777.0,25776.0,3.25643324]
[1693921254414,0.002,25777.0,25776.0,3.35883324]
[1693921256265,0.002,25777.0,25776.0,3.42771324]
[1693921256520,0.002,25777.0,25776.0,3.42837324]
[1693921256629,0.002,25777.0,25776.0,3.83521324]
[1693921256851,0.002,25777.0,25776.0,4.15327851]
[1693921258488,0.12120385,25779.0,25776.0,4.22293851]
[1693921258679,0.12120385,25779.0,25778.0,0.1024]
[1693921258993,0.12120385,25779.0,25778.0,3.20582]
[1693921259156,0.12120385,25779.0,25778.0,3.22823628]
[1693921259353,0.12120385,25779.0,25778.0,3.49516157]
[1693921260595,8.5e-07,25779.0,25778.0,4.28960684]
[1693921260803,0.1585,25784.0,25780.0,0.4478]
[1693921261014,0.1585,25784.0,25781.0,3.30443811]
[1693921261222,0.1585,25784.0,25783.0,0.1024]
[1693921261463,0.1585,25784.0,25783.0,3.205216]
[1693921262078,0.1605,25784.0,25783.0,3.205216]
[1693921262283,0.42907846,25784.0,25783.0,3.102816]
[1693921262463,0.1595,25784.0,25783.0,3.113816]
[1693921263060,0.1595,25784.0,25783.0,3.127816]
[1693921263061,0.002,25784.0,25783.0,3.127816]
[1693921263304,0.28960057,25784.0,25783.0,3.127816]
[1693921265560,0.28960057,25784.0,25783.0,2.352112]
[1693921267215,0.28960057,25784.0,25783.0,2.37398896]
[1693921272427,0.002,25784.0,25783.0,2.37398896]
[1693921272844,0.002,25784.0,25783.0,2.69920076]
[1693921274207,0.002,25784.0,25783.0,2.37398896]
[1693921274446,0.401913,25785.0,25783.0,2.37398896]
[1693921275534,0.401913,25785.0,25783.0,2.34898896]
[1693921275963,0.402913,25785.0,25783.0,2.36298896]
[1693921276796,0.61377075,25785.0,25783.0,2.36298896]
[1693921277004,0.27981295,25784.0,25783.0,2.37398896]
[1693921278161,0.27981295,25784.0,25783.0,2.36298896]
[1693921278556,0.28081295,25784.0,25783.0,2.37398896]
[1693921278979,0.28081295,25784.0,25783.0,2.35998896]
[1693921279367,0.28181295,25784.0,25783.0,2.37398896]
[1693921285951,0.002,25784.0,25783.0,2.37398896]
[1693921286576,0.002,25784.0,25783.0,2.42304853]
[1693921287224,0.002,25784.0,25783.0,2.37398896]
[1693921287797,0.26926797,25784.0,25783.0,2.37398896]
[1693921294441,0.36179227,25784.0,25783.0,2.37398896]
[1693921295424,0.002,25784.0,25783.0,2.37398896]
[1693921298347,0.27990755,25784.0,25783.0,2.37398896]
[1693921299578,0.37243185,25784.0,25783.0,2.37398896]
[1693921301636,0.51121831,25784.0,25783.0,2.37398896]
[1693921302077,0.32583507,25784.0,25783.0,0.04687696]
[1693921302294,3.31468823,25784.0,25783.0,0.04687696]
[1693921302500,3.16406041,25784.0,25783.0,0.025]
[1693921302904,3.44163333,25784.0,25783.0,0.04390176]
[1693921303326,3.44063333,25784.0,25783.0,0.014]
[1693921303529,3.25844634,25784.0,25783.0,0.03485881]
[1693921303746,3.42084634,25784.0,25783.0,0.03285881]
[1693921303963,0.08,25779.0,25774.0,0.775962]
[1693921304175,0.1024,25776.0,25775.0,0.77593]
[1693921304382,0.25705811,25776.0,25775.0,0.775945]
[1693921304610,0.25705811,25776.0,25775.0,1.55189]
[1693921304611,0.19507844,25776.0,25775.0,1.55189]
[1693921305255,0.20707844,25776.0,25775.0,1.55289]
[1693921305462,0.50166391,25776.0,25775.0,1.55289]
[1693921306079,0.51566391,25776.0,25775.0,1.55389]
[1693921306914,0.51566391,25776.0,25775.0,0.002]
[1693921307128,0.8327461,25776.0,25775.0,0.002]
[1693921307344,1.99530637,25776.0,25774.0,1.45707348]
[1693921307571,1.99530637,25776.0,25774.0,0.68111148]
[1693921307572,0.09264225,25775.0,25774.0,0.68111148]
[1693921308036,0.34776981,25775.0,25774.0,0.68111148]
[1693921308274,0.34776981,25775.0,25772.0,1.552036]
[1693921308275,2.40374584,25775.0,25772.0,1.552036]
[1693921308503,0.65435546,25774.0,25772.0,1.552036]
[1693921308708,0.38664527,25774.0,25772.0,1.552036]
[1693921308913,0.479254,25774.0,25772.0,1.552036]
[1693921309328,0.09260873,25774.0,25772.0,2.328072]
[1693921309541,0.34040164,25775.0,25772.0,2.328072]
[1693921309763,0.70404691,25775.0,25774.0,0.008]
[1693921309979,0.70404691,25775.0,25774.0,0.783975]
[1693921310373,0.61143818,25775.0,25774.0,0.783975]
[1693921311423,0.61043818,25775.0,25774.0,0.775975]
[1693921311570,0.76572418,25775.0,25774.0,0.775975]
[1693921311782,0.76572418,25775.0,25774.0,0.7941347]
[1693921311989,0.76572418,25775.0,25774.0,0.69728243]
[1693921312430,0.77872418,25775.0,25774.0,0.69828243]
[1693921312982,0.78872418,25775.0,25774.0,0.69928243]
[1693921313191,2.02797965,25775.0,25774.0,0.0201597]
[1693921313429,1.77627393,25775.0,25774.0,0.0201597]
[1693921313646,2.50570885,25775.0,25774.0,0.0201597]
[1693921313844,2.64472651,25775.0,25774.0,0.0201597]
[1693921314034,2.50570885,25775.0,25774.0,0.0201597]
[1693921314590,2.75779465,25775.0,25774.0,0.0201597]
[1693921314796,3.14443992,25775.0,25774.0,0.0201597]
[1693921315612,3.05193234,25775.0,25774.0,0.0201597]
[1693921316258,2.79984654,25775.0,25774.0,0.0201597]
[1693921316594,3.01843888,25775.0,25774.0,0.0201597]
[1693921316794,3.02542811,25775.0,25774.0,0.0201597]
[1693921317753,2.79984654,25775.0,25774.0,0.0201597]
[1693921317958,3.71579154,25775.0,25774.0,0.0201597]
[1693921318734,3.69279154,25775.0,25774.0,0.0181597]
[1693921318938,3.71079154,25775.0,25774.0,0.0191597]
[1693921319137,0.08,25774.0,25770.0,1.552181]
[1693921319336,0.1024,25771.0,25770.0,1.552181]
[1693921319944,0.1024,25771.0,25770.0,1.45647224]
[1693921321153,0.34815209,25771.0,25770.0,1.45647224]
[1693921321566,1.73903921,25771.0,25770.0,0.001]
[1693921321778,2.51710521,25771.0,25770.0,0.011]
[1693921321981,2.89084081,25771.0,25770.0,0.01]
[1693921322447,2.89084081,25771.0,25770.0,0.018]
[1693921322448,2.51710521,25771.0,25770.0,0.018]
[1693921322652,2.51910521,25771.0,25770.0,0.018]
[1693921325694,3.29517121,25771.0,25770.0,0.018]
[1693921326603,2.51910521,25771.0,25770.0,0.018]
[1693921327300,2.51910521,25771.0,25770.0,0.03638242]
[1693921327505,2.51910521,25771.0,25770.0,0.018]
[1693921327713,3.40189854,25771.0,25770.0,0.018]
[1693921327923,3.44189854,25771.0,25770.0,0.018]
[1693921328140,3.52189854,25771.0,25770.0,0.018]
[1693921328568,3.52189854,25771.0,25770.0,0.03636037]
[1693921329755,3.52189854,25771.0,25770.0,0.018]
[1693921330762,3.88189854,25771.0,25770.0,0.018]
[1693921331142,0.08,25767.0,25764.0,0.776276]
[1693921331338,0.1024,25765.0,25764.0,0.776276]
[1693921331609,0.73517867,25765.0,25764.0,0.776276]
[1693921332053,0.73517867,25765.0,25763.0,1.50333397]
[1693921332226,0.1024,25764.0,25763.0,1.50333397]
[1693921332457,0.1024,25764.0,25763.0,2.62243703]
[1693921332715,0.1024,25764.0,25763.0,1.11910306]
[1693921332922,0.48904527,25764.0,25763.0,1.11910306]
[1693921333522,1.26632127,25764.0,25763.0,1.11910306]
[1693921334150,1.50745207,25764.0,25763.0,1.11910306]
[1693921335213,1.50845207,25764.0,25763.0,1.11910306]
[1693921335419,1.85479517,25764.0,25763.0,1.11910306]
[1693921335632,1.85379517,25764.0,25763.0,1.11910306]
[1693921335766,1.87779517,25764.0,25763.0,1.11910306]
[1693921335978,1.90179517,25764.0,25763.0,1.11910306]
[1693921338318,1.90179517,25764.0,25762.0,0.776326]
[1693921338528,0.1024,25763.0,25762.0,0.776326]
[1693921338757,0.1024,25763.0,25762.0,1.89551249]
[1693921338958,0.16487006,25763.0,25762.0,1.89551249]
[1693921339370,0.42441665,25763.0,25762.0,1.89551249]
[1693921339750,0.62948665,25763.0,25762.0,1.11918649]
[1693921340516,1.82294661,25763.0,25762.0,1.11918649]
[1693921340925,1.82294661,25763.0,25761.0,1.11918649]
[1693921341129,1.82294661,25763.0,25762.0,1.11918649]
[1693921341130,2.59925361,25763.0,25762.0,1.11918649]
[1693921341334,2.59925361,25763.0,25761.0,1.11918649]
[1693921341539,2.58825361,25763.0,25762.0,1.11918649]
[1693921341741,2.61225361,25763.0,25762.0,1.11918649]
[1693921342001,2.61225361,25763.0,25761.0,1.11918649]
[1693921342165,1.885084,25763.0,25762.0,1.13680621]
[1693921342369,3.06403627,25763.0,25762.0,0.01761972]
[1693921342647,3.34945164,25763.0,25762.0,0.01761972]
[1693921342829,3.07103627,25763.0,25758.0,0.92694]
[1693921343093,0.1024,25761.0,25759.0,1.1192649]
[1693921343281,1.45781794,25761.0,25758.0,1.70338]
[1693921343485,0.48904527,25761.0,25759.0,0.776426]
[1693921343683,0.38664527,25761.0,25759.0,2.32928]
[1693921344301,0.30612954,25762.0,25759.0,2.32928]
[1693921345148,0.21887005,25761.0,25759.0,2.32928]
[1693921345581,0.23987005,25761.0,25759.0,2.32928]
[1693921345799,0.23987005,25761.0,25759.0,1.552853]
[1693921346002,0.21887005,25761.0,25759.0,1.552853]
[1693921346881,0.23787005,25761.0,25759.0,1.552853]
[1693921348750,0.04,25761.0,25759.0,1.552853]
[1693921348955,0.04,25761.0,25759.0,2.32928]
[1693921353217,0.04,25761.0,25759.0,2.18692635]
[1693921356185,1.44506872,25761.0,25759.0,0.63407235]
[1693921356385,0.25165325,25760.0,25759.0,0.63407235]
[1693921356997,0.63815479,25761.0,25759.0,1.41049935]
[1693921357224,0.04,25761.0,25759.0,2.20484702]
[1693921357894,0.29608104,25762.0,25759.0,2.20484702]
[1693921358106,0.012,25760.0,25759.0,2.20484702]
[1693921358508,0.29608104,25762.0,25759.0,2.20484702]
[1693921358713,0.25552121,25761.0,25759.0,2.20484702]
[1693921358921,0.27652121,25761.0,25759.0,2.20484702]
[1693921359128,0.46364532,25761.0,25759.0,2.20484702]
[1693921359332,0.011,25760.0,25759.0,2.20484702]
[1693921359535,0.25552121,25761.0,25759.0,2.20484702]
[1693921359738,0.012,25760.0,25759.0,2.20484702]
[1693921360100,0.27809096,25760.0,25759.0,2.20484702]
[1693921360888,0.28909096,25760.0,25759.0,2.20484702]
[1693921361306,1.06548796,25760.0,25759.0,0.01792067]
[1693921361935,0.28909096,25760.0,25759.0,0.01792067]
[1693921362352,1.45213323,25760.0,25759.0,0.01792067]
[1693921362778,1.45213323,25760.0,25759.0,0.01797315]
[1693921363600,1.44113323,25760.0,25759.0,0.01797315]
[1693921363799,2.23653023,25760.0,25759.0,0.01797315]
[1693921364030,2.21753023,25760.0,25759.0,0.01797315]
[1693921364238,2.21753023,25760.0,25757.0,1.572766]
[1693921364437,0.38664527,25759.0,25757.0,1.572766]
[1693921365580,0.62230666,25759.0,25757.0,1.572766]
[1693921365991,0.62530666,25759.0,25757.0,1.572766]
[1693921366627,0.62730666,25759.0,25757.0,1.572766]
[1693921366831,0.005,25759.0,25757.0,1.572766]
[1693921366940,0.005,25759.0,25757.0,2.349253]
[1693921367347,0.005,25759.0,25758.0,0.1024]
[1693921367548,0.005,25759.0,25758.0,2.431771]
[1693921368279,0.002,25759.0,25758.0,2.431771]
[1693921368491,0.002,25759.0,25758.0,3.55101882]
[1693921368832,0.012,25759.0,25758.0,3.55101882]
[1693921369281,0.023,25759.0,25758.0,3.93766409]
[1693921369485,0.023,25759.0,25758.0,4.82138936]
[1693921369685,0.023,25759.0,25758.0,4.81238936]
[1693921369893,0.023,25759.0,25758.0,4.80290936]
[1693921370091,0.023,25759.0,25758.0,4.73210936]
[1693921370528,0.023,25759.0,25758.0,4.74976871]
[1693921371347,0.39333286,25765.0,25758.0,4.74976871]
[1693921371521,0.39333286,25765.0,25761.0,0.1024]
[1693921371755,0.39333286,25765.0,25763.0,2.328921]
[1693921371969,0.39333286,25765.0,25763.0,2.48357911]
[1693921372177,0.39333286,25765.0,25763.0,2.328921]
[1693921372903,0.179345,25765.0,25763.0,2.328921]
[1693921373127,0.155345,25765.0,25763.0,2.328921]
[1693921373352,0.203345,25765.0,25763.0,2.328921]
[1693921374194,0.203345,25765.0,25764.0,0.1024]
[1693921374410,0.203345,25765.0,25764.0,2.431228]
[1693921375057,0.179345,25765.0,25764.0,2.431228]
[1693921375854,0.203345,25765.0,25764.0,2.431228]
[1693921376509,0.203345,25765.0,25764.0,2.81787327]
[1693921376755,0.048,25765.0,25764.0,3.68293854]
[1693921376962,0.048,25765.0,25764.0,3.61231854]
[1693921377801,0.024,25765.0,25764.0,3.61231854]
[1693921378234,0.003,25765.0,25764.0,3.61631854]
[1693921378433,0.024,25765.0,25764.0,3.61231854]
[1693921378643,0.024,25765.0,25764.0,3.61631854]
[1693921378644,0.027,25765.0,25764.0,3.61631854]
[1693921379072,0.003,25765.0,25764.0,3.61631854]
[1693921379275,0.006,25765.0,25764.0,3.61931854]
[1693921380625,0.006,25765.0,25764.0,3.23267327]
[1693921382439,0.006,25765.0,25764.0,3.31115327]
[1693921382643,0.09229395,25771.0,25764.0,3.97631327]
[1693921382937,1.08149395,25772.0,25770.0,0.1024]
[1693921383175,0.31338147,25772.0,25771.0,2.430598]
[1693921383380,0.22108752,25772.0,25771.0,2.430598]
[1693921383781,0.37638152,25772.0,25771.0,2.6736578]
[1693921384077,0.37638152,25772.0,25771.0,2.6486578]
[1693921384490,0.37638152,25772.0,25771.0,2.405598]
[1693921384897,0.155294,25772.0,25771.0,2.405598]
[1693921385278,0.179294,25772.0,25771.0,2.406598]
[1693921385684,0.203294,25772.0,25771.0,2.407598]
[1693921386255,0.155294,25772.0,25771.0,2.405598]
[1693921386482,0.155294,25772.0,25771.0,2.406598]
[1693921386483,0.167294,25772.0,25771.0,2.406598]
[1693921387354,0.167294,25772.0,25771.0,2.42396045]
[1693921387571,0.167294,25772.0,25771.0,2.81160572]
[1693921387572,0.191294,25772.0,25771.0,2.81160572]
[1693921387775,0.012,25772.0,25771.0,2.81060572]
[1693921388223,0.012,25772.0,25771.0,2.81160572]
[1693921388224,0.023,25772.0,25771.0,2.81160572]
[1693921389433,0.023,25772.0,25771.0,2.42496045]
[1693921391365,0.023,25772.0,25771.0,2.50128045]
[1693921391579,0.023,25772.0,25771.0,2.42496045]
[1693921392005,0.023,25772.0,25771.0,2.49048045]
[1693921392217,0.011,25772.0,25771.0,2.49218045]
[1693921392421,0.63121288,25776.0,25771.0,2.87884572]
[1693921392627,0.003,25772.0,25771.0,2.94176383]
[1693921392831,0.003,25772.0,25771.0,2.89034572]
[1693921393041,0.003,25772.0,25771.0,2.89046572]
[1693921393255,0.003,25772.0,25771.0,2.89058572]
[1693921393465,0.003,25772.0,25771.0,2.89142572]
[1693921393667,0.002,25772.0,25771.0,2.88656572]
[1693921393892,0.002,25772.0,25771.0,2.90740572]
[1693921394113,0.002,25772.0,25771.0,4.18097099]
[1693921394331,0.9892,25778.0,25772.0,0.5478]
[1693921394537,0.69871028,25779.0,25773.0,4.37180049]
[1693921394759,0.47111028,25779.0,25778.0,0.1024]
[1693921394979,0.47111028,25779.0,25778.0,3.36047811]
[1693921395196,0.47111028,25779.0,25778.0,2.429965]
[1693921395666,0.27716028,25779.0,25778.0,2.429965]
[1693921395874,0.164243,25779.0,25778.0,2.7505496]
[1693921396297,0.159243,25779.0,25778.0,2.7505496]
[1693921396706,0.183243,25779.0,25778.0,2.7515496]
[1693921396887,0.43519592,25779.0,25778.0,2.7515496]
[1693921397341,0.45919592,25779.0,25778.0,2.7535496]
[1693921397765,0.203243,25779.0,25778.0,2.7535496]
[1693921401192,0.179243,25779.0,25778.0,2.7525496]
[1693921401402,0.169243,25779.0,25778.0,2.7525496]
[1693921401818,0.027,25779.0,25778.0,2.7535496]
[1693921402052,0.027,25779.0,25778.0,2.77070107]
[1693921403132,0.027,25779.0,25778.0,3.82818634]
[1693921403396,0.23694865,25785.0,25781.0,0.4078]
[1693921403605,0.23694865,25785.0,25784.0,0.1024]
[1693921403808,0.39994865,25785.0,25784.0,1.80840611]
[1693921404014,0.39994865,25785.0,25784.0,1.653748]
[1693921404233,0.174902,25786.0,25784.0,3.31449759]
[1693921404883,0.011,25785.0,25784.0,3.31549759]
[1693921405083,0.035,25785.0,25784.0,3.31549759]
[1693921405498,0.011,25785.0,25784.0,3.31549759]
[1693921405699,0.23867085,25785.0,25784.0,3.206096]
[1693921405910,0.23867085,25785.0,25784.0,2.330022]
[1693921406134,0.22767085,25785.0,25784.0,2.329022]
[1693921406336,0.22767085,25785.0,25784.0,2.327022]
[1693921406547,0.22767085,25785.0,25784.0,2.329022]
[1693921406754,0.23667085,25785.0,25784.0,2.328022]
[1693921406960,0.009,25785.0,25784.0,2.328022]
[1693921407373,0.009,25785.0,25784.0,2.430422]
[1693921407767,0.02,25785.0,25784.0,2.431422]
[1693921407971,0.02,25785.0,25784.0,2.329022]
[1693921407972,0.3048143,25785.0,25784.0,2.329022]
[1693921412330,0.02,25785.0,25784.0,2.329022]
[1693921413989,0.28752933,25785.0,25784.0,2.329022]
[1693921416702,0.28752933,25785.0,25784.0,1.553348]
[1693921416903,0.41330116,25785.0,25784.0,0.777674]
[1693921417105,0.28752933,25785.0,25784.0,0.79754144]
[1693921418260,0.28752933,25785.0,25784.0,1.57321544]
[1693921418709,0.02,25785.0,25784.0,1.57321544]
[1693921419508,0.02,25785.0,25784.0,2.34888944]
[1693921421213,0.287081,25785.0,25784.0,2.34888944]
[1693921425764,0.287081,25785.0,25784.0,2.34888944]
[1693921426602,0.287081,25785.0,25784.0,1.57321544]
[1693921429442,0.1024011,25785.0,25784.0,0.02186744]
[1693921429654,0.34870063,25785.0,25784.0,0.02186744]
[1693921430025,0.02,25782.0,25775.0,0.775923]
[1693921430201,0.56130338,25781.0,25777.0,0.01712476]
[1693921430415,1.17670338,25781.0,25778.0,0.79521062]
[1693921430628,0.19394,25780.0,25778.0,0.79521062]
[1693921430831,0.25513416,25779.0,25778.0,1.55171]
[1693921431069,0.25513416,25779.0,25778.0,1.50542047]
[1693921431270,0.25513416,25779.0,25778.0,0.775855]
[1693921431446,0.25513416,25779.0,25778.0,1.55171]
[1693921431650,0.58058527,25780.0,25778.0,0.775855]
[1693921431875,0.48904527,25779.0,25778.0,0.016]
[1693921432440,1.26487027,25779.0,25778.0,0.04]
[1693921432662,1.26487027,25779.0,25776.0,1.551828]
[1693921432896,0.1024,25778.0,25776.0,1.551828]
[1693921433098,0.48904527,25778.0,25776.0,0.775914]
[1693921433310,0.48904527,25777.0,25774.0,0.67911555]
[1693921433596,0.34116691,25776.0,25774.0,1.45507155]
[1693921433806,0.23876691,25776.0,25774.0,1.45507155]
[1693921434440,0.23876691,25776.0,25774.0,2.23104655]
[1693921435483,0.24076691,25776.0,25774.0,2.24704655]
[1693921435686,0.24076691,25776.0,25774.0,2.25504655]
[1693921436102,0.24076691,25776.0,25774.0,2.24704655]
[1693921436312,0.24276691,25776.0,25774.0,2.26404655]
[1693921436934,0.21414064,25775.0,25774.0,2.26404655]
[1693921437313,0.21414064,25775.0,25774.0,1.48807155]
[1693921438463,0.21414064,25775.0,25774.0,1.47207155]
[1693921438580,0.21614064,25775.0,25774.0,1.48807155]
[1693921438787,0.21614064,25775.0,25774.0,1.47107155]
[1693921439191,0.004,25775.0,25774.0,2.26404655]
[1693921440225,0.24172935,25775.0,25774.0,2.26404655]
[1693921440422,0.24172935,25775.0,25774.0,1.48807155]
[1693921441694,0.24172935,25775.0,25774.0,0.71211555]
[1693921443442,0.004,25775.0,25774.0,0.71211555]
[1693921443643,0.004,25775.0,25774.0,1.50848753]
[1693921445217,0.25756858,25775.0,25774.0,1.48809055]
[1693921446474,0.004,25775.0,25774.0,1.48809055]
[1693921447327,0.004,25775.0,25774.0,2.30316213]
[1693921448112,0.004,25775.0,25774.0,2.28314341]
[1693921448446,0.25720797,25775.0,25774.0,2.28314341]
[1693921448626,0.25720797,25775.0,25774.0,1.50716841]
[1693921452915,0.25720797,25775.0,25774.0,0.05207786]
[1693921452916,0.54814719,25775.0,25774.0,0.05207786]
[1693921453118,0.49304527,25775.0,25774.0,0.05207786]
[1693921453322,2.33718443,25775.0,25774.0,0.033]
[1693921453983,2.33518443,25775.0,25774.0,0.03419084]
[1693921454199,2.33318443,25775.0,25774.0,0.01819084]
[1693921454405,2.53717443,25775.0,25774.0,0.02719084]
[1693921454609,2.53717443,25775.0,25774.0,0.009]
[1693921454994,2.88932136,25775.0,25774.0,0.001]
[1693921455226,2.89932136,25775.0,25774.0,0.002]
[1693921456020,2.89932136,25775.0,25772.0,1.552046]
[1693921456021,0.21003897,25774.0,25772.0,1.45718638]
[1693921456222,0.69908424,25774.0,25772.0,1.45718638]